fUSD/lending_fUSD_20260701
["ID","MTS","AMOUNT","RATE_DAILY","PERIOD"]
[426799684,1782838243000,-569.05020943,0.00033381,2]
[426799695,1782838243000,-300.0,0.00033381,2]
[426799693,1782838243000,-513.9940935,0.00033381,2]
[426799687,1782838243000,-300.0,0.00033381,2]
[426799691,1782838243000,-300.0,0.00033381,2]
[426799697,1782838243000,-584.74673027,0.00033381,2]
[426799708,1782838243000,-300.0,0.00033381,2]
[426799698,1782838243000,-300.0,0.00033381,2]
[426799699,1782838243000,-454.29401878,0.00033381,2]
[426799710,1782838243000,-571.33592782,0.00033381,2]
[426799700,1782838243000,-300.0,0.00033381,2]
[426799702,1782838243000,-448.13952337,0.00033381,2]
[426799704,1782838243000,-300.0,0.00033381,2]
[426799703,1782838243000,-300.0,0.00033381,2]
[426799706,1782838243000,-446.13298497,0.00033381,2]
[426799701,1782838243000,-300.0,0.00033381,2]
[426799722,1782838243000,-300.0,0.00033381,2]
[426799723,1782838243000,-300.0,0.00033381,2]
[426799719,1782838243000,-300.0,0.00033381,2]
[426799721,1782838243000,-300.0,0.00033381,2]
[426799720,1782838243000,-300.0,0.00033381,2]
[426799717,1782838243000,-1101.13386496,0.00033381,2]
[426799755,1782838243000,-300.0,0.00033381,2]
[426799761,1782838243000,-300.0,0.00033381,2]
[426799756,1782838243000,-300.0,0.00033381,2]
[426799790,1782838243000,-446.13298497,0.00033381,2]
[426799789,1782838243000,-300.0,0.00033381,2]
[426799785,1782838243000,-300.0,0.00033381,2]
[426799795,1782838243000,-3019.0,0.00033393,10]
[426799793,1782838243000,-300.0,0.00033381,2]
[426799796,1782838243000,-14014.94696749,0.00033419,2]
[426799802,1782838243000,-504.0,0.00033745,9]
[426799794,1782838243000,-238.9473695,0.00033384,60]
[426799797,1782838243000,-221.32,0.00033452,4]
[426799800,1782838243000,-278.0,0.00033552,30]
[426799803,1782838243000,-1415.23,0.00033765,2]
[426799801,1782838243000,-361.86,0.00033634,3]
[426799783,1782838243000,-454.29401878,0.00033381,2]
[426799799,1782838243000,-1535.03459618,0.00033484,2]
[426799805,1782838243000,-1222.19,0.00033765,2]
[426799808,1782838243000,-500.0,0.00033804,2]
[426799807,1782838243000,-1800.0,0.00033765,2]
[426799804,1782838243000,-1200.0,0.00033765,2]
[426799806,1782838243000,-1200.0,0.00033765,2]
[426799809,1782838243000,-500.0,0.00033804,2]
[426799812,1782838243000,-500.0,0.00033804,2]
[426799757,1782838243000,-345.78163832,0.00033381,2]
[426799810,1782838243000,-500.0,0.00033804,2]
[426799814,1782838243000,-500.0,0.00033804,2]
[426799813,1782838243000,-500.0,0.00033804,2]
[426799815,1782838243000,-500.0,0.00033804,2]
[426799798,1782838243000,-250.0,0.00033452,7]
[426799788,1782838243000,-482.24974565,0.00033381,2]
[426799811,1782838243000,-500.0,0.00033804,2]
[426799784,1782838243000,-300.0,0.00033381,2]
[426799786,1782838243000,-300.0,0.00033381,2]
[426799759,1782838243000,-300.0,0.00033381,2]
[426799758,1782838243000,-529.66240687,0.00033381,2]
[426799762,1782838243000,-300.0,0.00033381,2]
[426799769,1782838243000,-597.30103364,0.00033381,2]
[426799766,1782838243000,-300.0,0.00033381,2]
[426799768,1782838243000,-576.47447351,0.00033381,2]
[426799764,1782838243000,-1807.41685047,0.00033381,2]
[426799765,1782838243000,-300.0,0.00033381,2]
[426799763,1782838243000,-954.35902138,0.00033381,2]
[426799767,1782838243000,-300.0,0.00033381,2]
[426799770,1782838243000,-300.0,0.00033381,2]
[426799772,1782838243000,-300.0,0.00033381,2]
[426799760,1782838243000,-300.0,0.00033381,2]
[426799771,1782838243000,-311.24105314,0.00033381,2]
[426799773,1782838243000,-569.05020943,0.00033381,2]
[426799792,1782838243000,-300.0,0.00033381,2]
[426799791,1782838243000,-300.0,0.00033381,2]
[426799782,1782838243000,-300.0,0.00033381,2]
[426799780,1782838243000,-300.0,0.00033381,2]
[426799781,1782838243000,-584.74673027,0.00033381,2]
[426799777,1782838243000,-300.0,0.00033381,2]
[426799776,1782838243000,-300.0,0.00033381,2]
[426799774,1782838243000,-300.0,0.00033381,2]
[426799775,1782838243000,-300.0,0.00033381,2]
[426799787,1782838243000,-300.0,0.00033381,2]
[426799778,1782838243000,-300.0,0.00033381,2]
[426799779,1782838243000,-513.9940935,0.00033381,2]
[426799840,1782838244000,-185.3,0.00033858,2]
[426799844,1782838244000,-185.3,0.00033858,2]
[426799841,1782838244000,-482.64,0.00033858,2]
[426799846,1782838244000,-2337.0,0.00033899,11]
[426799851,1782838244000,-359.75849299,0.00034,2]
[426799847,1782838244000,-160.0,0.00033899,11]
[426799848,1782838244000,-14014.94696749,0.00033914,2]
[426799850,1782838244000,-359.0,0.00034,2]
[426799849,1782838244000,-155.04098883,0.00033929,2]
[426799845,1782838244000,-150.26021823,0.00033875,120]
[426799855,1782838244000,-785.0,0.00034028,2]
[426799854,1782838244000,-785.0,0.00034028,2]
[426799856,1782838244000,-169.97,0.00034054,13]
[426799859,1782838244000,-180.34,0.00034054,13]
[426799857,1782838244000,-169.97,0.00034054,13]
[426799862,1782838244000,-270.52,0.00034054,13]
[426799853,1782838244000,-785.0,0.00034028,2]
[426799858,1782838244000,-169.96,0.00034054,13]
[426799860,1782838244000,-180.35,0.00034054,13]
[426799861,1782838244000,-202.89,0.00034054,13]
[426799839,1782838244000,-482.64,0.00033858,2]
[426799852,1782838244000,-785.0,0.00034028,2]
[426799842,1782838244000,-185.3,0.00033858,2]
[426799822,1782838244000,-500.0,0.00033804,2]
[426799838,1782838244000,-248.77,0.00033858,2]
[426799863,1782838244000,-46202.48279848,0.00034104,30]
[426799819,1782838244000,-500.0,0.00033804,2]
[426799818,1782838244000,-500.0,0.00033804,2]
[426799816,1782838244000,-500.0,0.00033804,2]
[426799817,1782838244000,-500.0,0.00033804,2]
[426799826,1782838244000,-151.0,0.00033849,2]
[426799825,1782838244000,-357.60978304,0.00033847,2]
[426799824,1782838244000,-606.0,0.00033804,2]
[426799823,1782838244000,-500.0,0.00033804,2]
[426799820,1782838244000,-500.0,0.00033804,2]
[426799843,1782838244000,-644.64,0.00033858,2]
[426799821,1782838244000,-500.0,0.00033804,2]
[426799836,1782838244000,-185.33,0.00033849,2]
[426799827,1782838244000,-151.22,0.00033849,2]
[426799837,1782838244000,-184.87,0.00033858,2]
[426799829,1782838244000,-185.3,0.00033849,2]
[426799833,1782838244000,-482.64,0.00033849,2]
[426799830,1782838244000,-573.9,0.00033849,2]
[426799831,1782838244000,-151.78,0.00033849,2]
[426799835,1782838244000,-151.0,0.00033849,2]
[426799832,1782838244000,-151.76,0.00033849,2]
[426799834,1782838244000,-185.3,0.00033849,2]
[426799828,1782838244000,-644.64,0.00033849,2]
[426799864,1782838244000,-199.0,0.0003411,30]
[426799883,1782838244000,-202.66,0.000344,13]
[426799865,1782838244000,-176.27175071,0.00034161,30]
[426799890,1782838244000,-1328.1432804,0.00034478,2]
[426799893,1782838244000,-160.0,0.0003454,11]
[426799895,1782838244000,-504.0,0.00034571,10]
[426799897,1782838244000,-202.89,0.00034602,13]
[426799898,1782838244000,-2337.0,0.00034604,11]
[426799903,1782838244000,-482.64,0.00034671,2]
[426799896,1782838244000,-2337.0,0.00034585,11]
[426799901,1782838244000,-644.72,0.00034671,2]
[426799904,1782838244000,-482.64,0.00034671,2]
[426799899,1782838244000,-360.16,0.00034654,3]
[426799886,1782838244000,-5579.90352752,0.00034435,2]
[426799902,1782838244000,-644.64,0.00034671,2]
[426799906,1782838244000,-151.0,0.00034671,2]
[426799907,1782838244000,-248.76,0.00034671,2]
[426799908,1782838244000,-185.32,0.00034671,2]
[426799911,1782838244000,-248.81,0.0003468,2]
[426799913,1782838244000,-248.76,0.0003468,2]
[426799910,1782838244000,-185.33,0.0003468,2]
[426799909,1782838244000,-248.76,0.00034671,2]
[426799914,1782838244000,-248.74,0.0003468,2]
[426799915,1782838244000,-164.20104984,0.0003469,2]
[426799871,1782838244000,-25000.0,0.00034359,3]
[426799905,1782838244000,-482.64,0.00034671,2]
[426799892,1782838244000,-165572.59004572,0.000345,3]
[426799900,1782838244000,-152.29562834,0.00034658,30]
[426799887,1782838244000,-152.29562834,0.00034466,30]
[426799888,1782838244000,-171.33258188,0.00034466,30]
[426799869,1782838244000,-1353.80364335,0.00034359,3]
[426799866,1782838244000,-150.0,0.0003419,2]
[426799872,1782838244000,-25000.0,0.00034359,3]
[426799868,1782838244000,-46202.48279849,0.00034275,30]
[426799867,1782838244000,-350.0,0.00034275,2]
[426799874,1782838244000,-25000.0,0.00034359,3]
[426799882,1782838244000,-785.0,0.00034398,2]
[426799879,1782838244000,-785.0,0.00034398,2]
[426799880,1782838244000,-785.0,0.00034398,2]
[426799876,1782838244000,-25000.0,0.00034359,3]
[426799870,1782838244000,-25000.0,0.00034359,3]
[426799873,1782838244000,-25000.0,0.00034359,3]
[426799877,1782838244000,-5889.48324625,0.00034359,3]
[426799912,1782838244000,-248.76,0.0003468,2]
[426799875,1782838244000,-25000.0,0.00034359,3]
[426799878,1782838244000,-13275.28964116,0.00034359,3]
[426799881,1782838244000,-785.0,0.00034398,2]
[426799885,1782838244000,-14014.94696749,0.00034409,2]
[426799884,1782838244000,-1500.0,0.000344,7]
[426799889,1782838244000,-171.33258188,0.00034466,30]
[426799894,1782838244000,-278.0,0.00034552,30]
[426799891,1782838244000,-302.40920944,0.000345,30]
[426799954,1782838245000,-162.33008513,0.00034824,30]
[426799952,1782838245000,-300.04099165,0.00034795,2]
[426799955,1782838245000,-162.33008513,0.00034824,30]
[426799963,1782838245000,-500.0,0.00034824,30]
[426799953,1782838245000,-162.33008513,0.00034824,30]
[426799947,1782838245000,-156.51005389,0.0003476,2]
[426799948,1782838245000,-156.51005389,0.0003476,2]
[426799950,1782838245000,-156.51005389,0.0003476,2]
[426799940,1782838245000,-156.51005389,0.0003476,2]
[426799945,1782838245000,-156.51005389,0.0003476,2]
[426799956,1782838245000,-162.33008513,0.00034824,30]
[426799949,1782838245000,-156.51005389,0.0003476,2]
[426799959,1782838245000,-154.97497353,0.00034824,30]
[426799970,1782838245000,-212.57050643,0.00034824,30]
[426799961,1782838245000,-3146.94926143,0.00034824,30]
[426799962,1782838245000,-151.0,0.00034824,30]
[426799957,1782838245000,-162.33008517,0.00034824,30]
[426799960,1782838245000,-151.0,0.00034824,30]
[426799964,1782838245000,-6000.0,0.00034824,30]
[426799968,1782838245000,-552.4879694,0.00034824,30]
[426799966,1782838245000,-247.40961499,0.00034824,30]
[426799965,1782838245000,-154.97497353,0.00034824,30]
[426799972,1782838245000,-629.4210021,0.00034824,30]
[426799969,1782838245000,-151.0,0.00034824,30]
[426799973,1782838245000,-154.97497353,0.00034824,30]
[426799951,1782838245000,-1500.0,0.00034795,2]
[426799958,1782838245000,-2771.10041734,0.00034824,30]
[426799946,1782838245000,-156.51005389,0.0003476,2]
[426799921,1782838245000,-644.64,0.00034699,2]
[426799944,1782838245000,-156.51005389,0.0003476,2]
[426799916,1782838245000,-151.0,0.00034699,2]
[426799923,1782838245000,-644.64,0.00034699,2]
[426799920,1782838245000,-573.9,0.00034699,2]
[426799967,1782838245000,-176.42201959,0.00034824,30]
[426799918,1782838245000,-644.64,0.00034699,2]
[426799922,1782838245000,-185.33,0.00034699,2]
[426799919,1782838245000,-151.0,0.00034699,2]
[426799917,1782838245000,-151.0,0.00034699,2]
[426799924,1782838245000,-644.64,0.00034699,2]
[426799926,1782838245000,-644.64,0.00034699,2]
[426799925,1782838245000,-185.33,0.00034699,2]
[426799927,1782838245000,-185.3,0.00034699,2]
[426799942,1782838245000,-156.51005389,0.0003476,2]
[426799929,1782838245000,-185.3,0.00034699,2]
[426799928,1782838245000,-185.26,0.00034699,2]
[426799930,1782838245000,-248.81,0.00034699,2]
[426799931,1782838245000,-248.77,0.00034699,2]
[426799933,1782838245000,-13655.15982496,0.00034706,7]
[426799934,1782838245000,-2337.0,0.00034712,11]
[426799936,1782838245000,-156.51005393,0.0003476,2]
[426799938,1782838245000,-156.51005389,0.0003476,2]
[426799935,1782838245000,-4528.0,0.00034729,10]
[426799937,1782838245000,-156.51005389,0.0003476,2]
[426799941,1782838245000,-156.51005389,0.0003476,2]
[426799939,1782838245000,-156.51005389,0.0003476,2]
[426799943,1782838245000,-156.51005389,0.0003476,2]
[426799932,1782838245000,-520980.97899844,0.000347,5]
[426799971,1782838245000,-6222.0,0.00034824,30]
[426799976,1782838245000,-6452.214,0.00034824,30]
[426799975,1782838245000,-194.24757678,0.00034824,30]
[426800006,1782838245000,-244.59556489,0.0003498,2]
[426800005,1782838245000,-812.0,0.0003497,120]
[426800007,1782838245000,-749.0,0.0003498,120]
[426800009,1782838245000,-12211.5786604,0.00034989,2]
[426800011,1782838245000,-812.0,0.0003499,120]
[426800013,1782838245000,-150.0,0.00034999,2]
[426800016,1782838245000,-2000.0,0.00034999,2]
[426800018,1782838245000,-2813.71908626,0.00035,10]
[426800015,1782838245000,-204.032,0.00034999,2]
[426800014,1782838245000,-150.0,0.00034999,2]
[426800017,1782838245000,-274352.151844,0.00035,30]
[426800024,1782838245000,-150.0,0.00035,7]
[426800021,1782838245000,-800.0,0.00035,7]
[426800019,1782838245000,-6241.95861685,0.00035,2]
[426800023,1782838245000,-2422.57662935,0.00035,30]
[426800020,1782838245000,-1734.57483121,0.00035,30]
[426800022,1782838245000,-5306.3819393,0.00035,7]
[426800026,1782838245000,-45971.38669517,0.00035,120]
[426800028,1782838245000,-303.24,0.00035,120]
[426800025,1782838245000,-494.95442488,0.00035,15]
[426800029,1782838245000,-1500.0,0.00035,2]
[426800027,1782838245000,-1458.96,0.00035,30]
[426800032,1782838245000,-1500.0,0.00035,2]
[426800031,1782838245000,-980.56345482,0.00035,10]
[426800030,1782838245000,-3000.0,0.00035,30]
[426800033,1782838245000,-1500.0,0.00035,2]
[426799974,1782838245000,-151.0,0.00034824,30]
[426800008,1782838245000,-812.0,0.0003498,120]
[426800004,1782838245000,-749.0,0.0003497,120]
[426800034,1782838245000,-1500.0,0.00035,2]
[426800001,1782838245000,-14014.94696749,0.00034905,2]
[426800010,1782838245000,-749.0,0.0003499,120]
[426799988,1782838245000,-154.97497353,0.00034824,30]
[426799977,1782838245000,-154.97497353,0.00034824,30]
[426799980,1782838245000,-154.97497353,0.00034824,30]
[426799979,1782838245000,-6690.945918,0.00034824,30]
[426799984,1782838245000,-154.97497353,0.00034824,30]
[426799981,1782838245000,-5668.15858136,0.00034824,30]
[426799983,1782838245000,-154.97497353,0.00034824,30]
[426799982,1782838245000,-154.97497353,0.00034824,30]
[426799987,1782838245000,-154.97497353,0.00034824,30]
[426799986,1782838245000,-154.97497353,0.00034824,30]
[426799985,1782838245000,-154.97497353,0.00034824,30]
[426799989,1782838245000,-154.97497353,0.00034824,30]
[426799978,1782838245000,-167.25719493,0.00034824,30]
[426799992,1782838245000,-154.97497353,0.00034824,30]
[426799990,1782838245000,-154.97497353,0.00034824,30]
[426800003,1782838245000,-2337.0,0.00034968,11]
[426800012,1782838245000,-168.0,0.00034995,2]
[426799998,1782838245000,-171.33258188,0.00034849,30]
[426799993,1782838245000,-154.97497353,0.00034824,30]
[426800000,1782838245000,-3168.5388,0.000349,2]
[426800002,1782838245000,-15240.57347093,0.00034968,2]
[426799994,1782838245000,-154.97497353,0.00034824,30]
[426799991,1782838245000,-154.97497353,0.00034824,30]
[426799999,1782838245000,-10344.0554,0.000349,2]
[426799997,1782838245000,-171.33258188,0.00034849,30]
[426799996,1782838245000,-152.29562834,0.00034849,30]
[426799995,1782838245000,-154.97497359,0.00034824,30]
[426800082,1782838246000,-256.94776988,0.000351,120]
[426800074,1782838246000,-3565.0,0.0003509,2]
[426800072,1782838246000,-2500.0,0.00035074,2]
[426800083,1782838246000,-186.23805822,0.000351,120]
[426800071,1782838246000,-13830.62,0.00035062,2]
[426800073,1782838246000,-340.0,0.0003508,30]
[426800070,1782838246000,-22499.99,0.00035062,2]
[426800069,1782838246000,-22499.99,0.00035062,2]
[426800067,1782838246000,-152.29562834,0.00035041,30]
[426800068,1782838246000,-22500.0,0.00035062,2]
[426800084,1782838246000,-172.5297303,0.000351,120]
[426800076,1782838246000,-216.0,0.0003509,2]
[426800087,1782838246000,-187.4445374,0.000351,120]
[426800075,1782838246000,-935.0,0.0003509,2]
[426800077,1782838246000,-256.37690947,0.000351,120]
[426800079,1782838246000,-197.46497771,0.000351,120]
[426800081,1782838246000,-189.96616792,0.000351,120]
[426800078,1782838246000,-213.38018022,0.000351,120]
[426800085,1782838246000,-176.7929962,0.000351,120]
[426800088,1782838246000,-283.0842727,0.000351,120]
[426800086,1782838246000,-221.38961909,0.000351,120]
[426800095,1782838246000,-202.89,0.0003515,13]
[426800091,1782838246000,-1475.0,0.00035102,5]
[426800089,1782838246000,-167.71431912,0.000351,120]
[426800066,1782838246000,-2337.0,0.00035032,11]
[426800093,1782838246000,-22500.0,0.00035125,2]
[426800080,1782838246000,-906.0920196,0.000351,120]
[426800061,1782838246000,-150.8901327,0.00035,2]
[426800048,1782838246000,-22499.99,0.00035,2]
[426800064,1782838246000,-685.33032751,0.00035014,30]
[426800090,1782838246000,-231.042318,0.000351,10]
[426800035,1782838246000,-1500.0,0.00035,2]
[426800036,1782838246000,-1500.0,0.00035,2]
[426800038,1782838246000,-359.0,0.00035,30]
[426800040,1782838246000,-151.0,0.00035,30]
[426800037,1782838246000,-3585.3443,0.00035,2]
[426800039,1782838246000,-151.0,0.00035,30]
[426800041,1782838246000,-151.0,0.00035,30]
[426800047,1782838246000,-22499.99,0.00035,2]
[426800043,1782838246000,-151.0,0.00035,30]
[426800044,1782838246000,-151.0,0.00035,30]
[426800046,1782838246000,-1500.0,0.00035,2]
[426800045,1782838246000,-22500.0,0.00035,2]
[426800042,1782838246000,-151.0,0.00035,30]
[426800059,1782838246000,-216.62538722,0.00035,3]
[426800050,1782838246000,-22500.0,0.00035,2]
[426800051,1782838246000,-22500.0,0.00035,2]
[426800057,1782838246000,-359.0,0.00035,30]
[426800056,1782838246000,-167.3472555,0.00035,7]
[426800053,1782838246000,-22499.99,0.00035,2]
[426800054,1782838246000,-22500.0,0.00035,2]
[426800052,1782838246000,-649.32395665,0.00035,2]
[426800055,1782838246000,-200.0,0.00035,10]
[426800058,1782838246000,-216.62538722,0.00035,30]
[426800060,1782838246000,-285.05513885,0.00035,30]
[426800063,1782838246000,-5800.0,0.00035,2]
[426800065,1782838246000,-11107.39727872,0.00035025,2]
[426800062,1782838246000,-209.83736175,0.00035,30]
[426800097,1782838246000,-160.0,0.00035179,11]
[426800113,1782838246000,-500.0,0.00035244,120]
[426800094,1782838246000,-417.07,0.00035136,10]
[426800131,1782838246000,-685.33032751,0.00035288,30]
[426800133,1782838246000,-437.03,0.00035288,2]
[426800127,1782838246000,-1300.1056,0.00035263,2]
[426800126,1782838246000,-158.59769754,0.00035251,2]
[426800129,1782838246000,-150.0,0.00035273,2]
[426800130,1782838246000,-234.39394191,0.0003528,2]
[426800135,1782838246000,-950.57487904,0.000353,120]
[426800139,1782838246000,-171.1336522,0.00035358,14]
[426800142,1782838246000,-750.0,0.0003537,7]
[426800137,1782838246000,-191.4,0.00035311,2]
[426800145,1782838246000,-750.0,0.0003537,7]
[426800138,1782838246000,-9158.0,0.00035325,5]
[426800128,1782838246000,-1314.2834,0.00035263,2]
[426800144,1782838246000,-750.0,0.0003537,7]
[426800141,1782838246000,-750.0,0.0003537,7]
[426800140,1782838246000,-750.0,0.0003537,7]
[426800143,1782838246000,-750.0,0.0003537,7]
[426800147,1782838246000,-750.0,0.0003537,7]
[426800146,1782838246000,-750.0,0.0003537,7]
[426800150,1782838246000,-750.0,0.0003537,7]
[426800153,1782838246000,-750.0,0.0003537,7]
[426800149,1782838246000,-750.0,0.0003537,7]
[426800152,1782838246000,-750.0,0.0003537,7]
[426800154,1782838246000,-750.0,0.0003537,7]
[426800151,1782838246000,-750.0,0.0003537,7]
[426800092,1782838246000,-104000.0,0.00035102,15]
[426800136,1782838246000,-996.68940674,0.00035306,2]
[426800132,1782838246000,-300.0,0.00035288,2]
[426800155,1782838246000,-750.0,0.0003537,7]
[426800125,1782838246000,-4788.88,0.0003525,2]
[426800123,1782838246000,-170.0,0.00035249,7]
[426800096,1782838246000,-685.33032751,0.00035151,30]
[426800099,1782838246000,-645.65898549,0.00035195,30]
[426800109,1782838246000,-171.33258188,0.00035233,30]
[426800098,1782838246000,-22500.0,0.00035188,2]
[426800100,1782838246000,-161.14,0.000352,30]
[426800104,1782838246000,-184.45660883,0.000352,120]
[426800107,1782838246000,-163.63126396,0.000352,120]
[426800101,1782838246000,-178.50147714,0.000352,120]
[426800103,1782838246000,-185.73354233,0.000352,120]
[426800105,1782838246000,-182.56670007,0.000352,120]
[426800106,1782838246000,-200.0,0.000352,120]
[426800108,1782838246000,-152.29562834,0.00035233,30]
[426800110,1782838246000,-171.33258188,0.00035233,30]
[426800148,1782838246000,-750.0,0.0003537,7]
[426800134,1782838246000,-878.6828212,0.00035288,2]
[426800111,1782838246000,-340.0,0.0003524,46]
[426800120,1782838246000,-238.9473694,0.00035244,120]
[426800121,1782838246000,-249.0017555,0.00035244,120]
[426800117,1782838246000,-157.4610997,0.00035244,120]
[426800112,1782838246000,-150.9105807,0.00035244,120]
[426800124,1782838246000,-194.0,0.00035249,7]
[426800119,1782838246000,-217.0712195,0.00035244,120]
[426800122,1782838246000,-160.0,0.00035245,11]
[426800118,1782838246000,-153.1564114,0.00035244,120]
[426800114,1782838246000,-568.0740546,0.00035244,120]
[426800115,1782838246000,-274.5201725,0.00035244,120]
[426800116,1782838246000,-225.9391695,0.00035244,120]
[426800177,1782838247000,-750.0,0.0003537,7]
[426800181,1782838247000,-750.0,0.0003537,7]
[426800182,1782838247000,-750.0,0.0003537,7]
[426800183,1782838247000,-750.0,0.0003537,7]
[426800185,1782838247000,-750.0,0.0003537,7]
[426800187,1782838247000,-750.0,0.0003537,7]
[426800189,1782838247000,-750.0,0.0003537,7]
[426800188,1782838247000,-750.0,0.0003537,7]
[426800190,1782838247000,-750.0,0.0003537,7]
[426800193,1782838247000,-750.0,0.0003537,7]
[426800197,1782838247000,-750.0,0.0003537,7]
[426800192,1782838247000,-750.0,0.0003537,7]
[426800195,1782838247000,-750.0,0.0003537,7]
[426800191,1782838247000,-750.0,0.0003537,7]
[426800194,1782838247000,-750.0,0.0003537,7]
[426800196,1782838247000,-750.0,0.0003537,7]
[426800200,1782838247000,-750.0,0.0003537,7]
[426800207,1782838247000,-151.0,0.0003538,120]
[426800179,1782838247000,-750.0,0.0003537,7]
[426800186,1782838247000,-750.0,0.0003537,7]
[426800175,1782838247000,-750.0,0.0003537,7]
[426800163,1782838247000,-750.0,0.0003537,7]
[426800184,1782838247000,-750.0,0.0003537,7]
[426800199,1782838247000,-750.0,0.0003537,7]
[426800157,1782838247000,-750.0,0.0003537,7]
[426800159,1782838247000,-750.0,0.0003537,7]
[426800158,1782838247000,-750.0,0.0003537,7]
[426800156,1782838247000,-750.0,0.0003537,7]
[426800160,1782838247000,-750.0,0.0003537,7]
[426800161,1782838247000,-750.0,0.0003537,7]
[426800164,1782838247000,-750.0,0.0003537,7]
[426800165,1782838247000,-750.0,0.0003537,7]
[426800162,1782838247000,-750.0,0.0003537,7]
[426800166,1782838247000,-750.0,0.0003537,7]
[426800169,1782838247000,-750.0,0.0003537,7]
[426800170,1782838247000,-750.0,0.0003537,7]
[426800171,1782838247000,-750.0,0.0003537,7]
[426800168,1782838247000,-750.0,0.0003537,7]
[426800172,1782838247000,-750.0,0.0003537,7]
[426800167,1782838247000,-750.0,0.0003537,7]
[426800174,1782838247000,-750.0,0.0003537,7]
[426800178,1782838247000,-750.0,0.0003537,7]
[426800180,1782838247000,-750.0,0.0003537,7]
[426800173,1782838247000,-750.0,0.0003537,7]
[426800176,1782838247000,-750.0,0.0003537,7]
[426800198,1782838247000,-750.0,0.0003537,7]
[426800212,1782838247000,-178.18248126,0.000354,30]
[426800202,1782838247000,-750.0,0.0003537,7]
[426800233,1782838247000,-11107.3972787,0.000354,2]
[426800225,1782838247000,-178.18248126,0.000354,30]
[426800229,1782838247000,-178.18248126,0.000354,30]
[426800230,1782838247000,-178.18248126,0.000354,30]
[426800231,1782838247000,-178.18,0.000354,30]
[426800235,1782838247000,-340.0,0.0003541,60]
[426800237,1782838247000,-152.29562834,0.00035425,30]
[426800236,1782838247000,-685.33032751,0.00035425,30]
[426800239,1782838247000,-749.0,0.0003547,120]
[426800228,1782838247000,-178.18248126,0.000354,30]
[426800238,1782838247000,-812.0,0.0003546,120]
[426800240,1782838247000,-812.0,0.0003547,120]
[426800248,1782838247000,-646.89528257,0.000355,60]
[426800242,1782838247000,-812.0,0.0003548,120]
[426800241,1782838247000,-749.0,0.0003548,120]
[426800244,1782838247000,-248.81,0.00035485,2]
[426800243,1782838247000,-151.0,0.00035485,2]
[426800247,1782838247000,-248.76,0.00035493,2]
[426800201,1782838247000,-682.0,0.0003537,7]
[426800249,1782838247000,-1555.22090464,0.000355,30]
[426800245,1782838247000,-749.0,0.0003549,120]
[426800223,1782838247000,-178.18248126,0.000354,30]
[426800250,1782838247000,-233625.99351273,0.000355,120]
[426800224,1782838247000,-178.18248126,0.000354,30]
[426800203,1782838247000,-750.0,0.0003537,7]
[426800205,1782838247000,-750.0,0.0003537,7]
[426800204,1782838247000,-750.0,0.0003537,7]
[426800206,1782838247000,-750.0,0.0003537,7]
[426800208,1782838247000,-504.0,0.00035397,11]
[426800220,1782838247000,-178.18248126,0.000354,30]
[426800219,1782838247000,-178.18248126,0.000354,30]